bitfinex/quotes_ETHUSD_20250815
["timestamp","ask_amount","ask_price","bid_price","bid_amount"]
[1755252955659,2.15703192,4636.0,4635.9,0.44290001]
[1755252955857,2.15703192,4636.0,4635.9,0.93440001]
[1755252956356,5.45603192,4636.0,4635.9,0.93440001]
[1755252956521,2.15703192,4636.0,4635.9,0.93440001]
[1755252960965,2.15703192,4636.0,4635.9,0.93520001]
[1755252969084,2.15903192,4636.0,4635.9,0.93520001]
[1755252972486,2.15903192,4636.0,4635.9,0.44370001]
[1755252973604,2.15903192,4636.0,4635.9,0.00080001]
[1755252974901,2.15903192,4636.0,4635.9,0.44370001]
[1755252975294,2.15903192,4636.0,4635.9,0.93520001]
[1755252977005,0.002,4636.0,4635.9,14.50935462]
[1755252977158,0.002,4636.0,4635.9,19.06849008]
[1755252981004,0.002,4636.0,4635.9,21.22556853]
[1755252981811,0.002,4636.0,4635.9,19.06849008]
[1755252983829,0.002,4636.0,4635.9,5.00283547]
[1755252984036,2.15903192,4636.0,4635.9,3.10880001]
[1755252984907,2.15903192,4636.0,4635.9,0.10880001]
[1755252985311,2.15903192,4636.0,4635.9,0.00080001]
[1755252987116,2.15823192,4636.0,4635.9,0.00080001]
[1755252989426,5.45523192,4636.0,4635.9,0.00080001]
[1755252989753,6.86066621,4636.0,4635.9,0.00080001]
[1755252990636,2.15717151,4635.7,4635.4,0.001]
[1755252990837,2.15707845,4635.9,4633.6,5.29067869]
[1755252990838,2.70731112,4635.4,4635.3,1e-08]
[1755252991040,5.70731112,4635.4,4635.3,1e-08]
[1755252991340,6.32871112,4635.4,4635.3,1e-08]
[1755252992111,2.1574973,4635.0,4634.9,1e-08]
[1755252992312,5.8772522,4635.0,4634.9,1e-08]
[1755252992624,6.47848939,4635.0,4634.9,1e-08]
[1755252993142,6.58648939,4635.0,4634.9,1e-08]
[1755252993330,7.05169762,4635.0,4634.9,1e-08]
[1755252994523,2.1574973,4635.0,4634.9,1e-08]
[1755252994720,5.4554973,4635.0,4634.9,1e-08]
[1755252994954,5.4554973,4635.0,4634.9,0.45750001]
[1755252995131,5.4554973,4635.0,4634.9,0.91900001]
[1755252995330,2.1574973,4635.0,4634.9,0.91900001]
[1755252995738,3.298,4635.3,4634.9,0.91900001]
[1755252995933,3.298,4635.4,4635.0,0.919]
[1755252996230,3.298,4635.4,4635.1,0.919]
[1755252996436,3.298,4635.5,4634.9,1.44931547]
[1755252996643,2.15744873,4635.2,4634.9,1.44931547]
[1755252996849,2.15732053,4635.4,4635.0,0.14708918]
[1755252997042,3.298,4635.5,4635.0,1.06608918]
[1755252997249,2.15740029,4635.3,4635.1,0.919]
[1755252997450,3.298,4635.5,4635.0,0.14708918]
[1755252997629,2.15745075,4635.1,4635.0,0.14708918]
[1755252998129,2.15745075,4635.1,4635.0,1.06608918]
[1755252999362,2.15745075,4635.1,4635.0,0.919]
[1755253000061,2.1574973,4635.0,4634.9,1e-08]
[1755253000442,2.17766011,4635.0,4634.9,1e-08]
[1755253000643,2.1574973,4635.0,4634.9,1e-08]
[1755253004335,5.4554973,4635.0,4634.9,1e-08]
[1755253004946,5.5634973,4635.0,4634.9,1e-08]
[1755253006877,2.2654973,4635.0,4634.9,1e-08]
[1755253007055,5.4554973,4635.0,4634.9,0.91900001]
[1755253007571,2.1574973,4635.0,4634.9,0.91900001]
[1755253007753,5.4554973,4635.0,4634.9,0.91900001]
[1755253008153,5.45540788,4635.2,4634.9,0.91900001]
[1755253008462,2.15745075,4635.1,4635.0,2.36841546]
[1755253008662,2.15735766,4635.3,4635.0,1.44941546]
[1755253008870,3.298,4635.4,4635.1,0.919]
[1755253009083,2.15740421,4635.2,4635.1,0.919]
[1755253009297,3.298,4635.4,4635.1,0.24774155]
[1755253009494,2.15740196,4635.3,4635.1,0.24774155]
[1755253009850,2.15735766,4635.3,4635.2,1.027]
[1755253010048,2.15726061,4635.6,4635.2,1.027]
[1755253010272,3.297,4635.9,4635.3,1.4914157]
[1755253010478,2.15712498,4635.8,4635.4,0.4575]
[1755253010876,2.15725685,4635.6,4635.5,1.027]
[1755253012660,5.45408331,4635.9,4635.5,1.027]
[1755253012862,2.15721805,4635.6,4635.5,1.027]
[1755253013205,2.15721805,4635.6,4635.5,1.1109397]
[1755253013361,2.15824455,4636.0,4635.5,1.1109397]
[1755253013562,3.2982,4636.0,4635.5,1.1109397]
[1755253013823,2.15711248,4635.9,4635.6,0.9305]
[1755253014102,2.15712699,4635.8,4635.7,0.9305]
[1755253015297,0.0012,4636.0,4635.7,15.00887858]
[1755253015611,0.0012,4636.0,4635.8,3.9305]
[1755253016109,0.0012,4636.0,4635.9,0.02157078]
[1755253016294,0.0012,4636.0,4635.9,6.10914923]
[1755253016471,0.0012,4636.0,4635.9,6.08757845]
[1755253016676,0.0012,4636.0,4635.9,8.29204249]
[1755253017024,0.0012,4636.0,4635.9,6.13496404]
[1755253017619,0.0012,4636.0,4635.9,8.40004249]
[1755253020806,0.0012,4636.0,4635.9,11.69704249]
[1755253020974,0.0012,4636.0,4635.9,5.74916404]
[1755253021174,0.0012,4636.0,4635.9,6.404]
[1755253021374,0.0012,4636.0,4635.9,6.8407]
[1755253021776,0.0012,4636.0,4635.9,7.3345]
[1755253023376,0.0012,4636.0,4635.9,20.90865461]
[1755253025425,0.0012,4636.0,4635.9,23.06573306]
[1755253025635,0.0012,4636.0,4635.9,23.11311865]
[1755253029335,0.0004,4636.0,4635.9,23.11311865]
[1755253029533,0.0004,4636.0,4635.9,19.81711865]
[1755253029735,0.0004,4636.0,4635.9,23.11311865]
[1755253031002,0.0004,4636.0,4635.9,23.11391865]
[1755253035251,0.0004,4636.0,4635.9,25.2709971]
[1755253037230,0.0004,4636.0,4635.9,25.8209971]
[1755253045474,0.002,4637.0,4636.9,2.15661325]
[1755253045638,0.002,4637.0,4636.9,19.24042919]
[1755253045842,0.002,4637.0,4636.9,23.25972919]
[1755253046958,0.002,4637.0,4636.9,23.36630131]
[1755253048673,0.002,4637.0,4636.9,23.91630131]
[1755253051084,0.002,4637.4,4637.3,5.70642723]
[1755253051239,0.002,4637.4,4637.3,9.78671733]
[1755253051436,0.002,4637.4,4637.3,9.89551733]
[1755253052032,0.002,4637.4,4637.3,10.33971733]
[1755253052438,0.002,4637.4,4637.3,3.1088]
[1755253052667,2.96088073,4637.4,4637.3,0.1088]
[1755253053644,2.96088073,4637.4,4637.3,6.2948]
[1755253053645,0.002,4637.4,4637.3,6.2948]
[1755253053879,0.002,4637.4,4637.3,6.2938]
[1755253054038,0.002,4637.4,4637.3,8.28059546]
[1755253054380,0.002,4637.4,4637.3,10.43702269]
[1755253054558,0.002,4637.4,4637.3,11.34832269]
[1755253054763,0.002,4637.4,4637.3,10.88122269]
[1755253057575,0.002,4637.4,4637.3,11.34832269]
[1755253058998,0.002,4637.4,4637.3,11.89832269]
[1755253063881,0.002,4637.4,4637.3,12.00632269]
[1755253064862,0.002,4637.5,4637.4,5.15638073]
[1755253065057,0.002,4637.8,4637.7,2.70624124]
[1755253065266,0.002,4637.8,4637.7,22.59495826]
[1755253065470,0.002,4638.4,4638.0,0.55]
[1755253065658,0.002,4638.4,4638.3,19.28011692]
[1755253065863,0.002,4638.4,4638.3,23.24055189]
[1755253066087,0.002,4638.4,4638.3,23.68475189]
[1755253066410,0.002,4639.3,4639.2,5.70554405]
[1755253066562,0.002,4639.3,4639.2,22.57269866]
[1755253066761,0.002,4639.3,4639.2,23.12489866]
[1755253067094,0.002,4639.3,4639.2,25.7964627]
[1755253067271,0.002,4639.3,4639.2,25.95473106]
[1755253068894,0.002,4639.6,4639.5,5.70540467]
[1755253069063,0.002,4639.6,4639.5,8.99740467]
[1755253069267,0.002,4639.6,4639.5,11.09220013]
[1755253069589,0.002,4639.6,4639.5,12.00350013]
[1755253070093,0.002,4639.9,4639.8,3.55]
[1755253070393,0.002,4639.9,4639.8,20.43770726]
[1755253070558,0.002,4639.9,4639.8,23.01561992]
[1755253070760,0.0012,4639.9,4639.8,25.68718396]
[1755253071258,0.0012,4639.9,4639.8,25.79518396]
[1755253071454,0.0004,4639.9,4639.8,25.79598396]
[1755253077294,0.0004,4639.9,4639.8,25.79498396]
[1755253080507,0.002,4640.3,4640.0,2.70517241]
[1755253080798,0.002,4640.3,4640.0,11.20063645]
[1755253081197,0.002,4640.3,4640.0,12.11963645]
[1755253081400,0.002,4640.3,4640.0,11.20063645]
[1755253083084,0.002,4640.3,4640.0,12.11963645]
[1755253083401,0.002,4640.3,4640.0,11.65583645]
[1755253083597,0.002,4640.3,4640.0,11.20063645]
[1755253083770,0.002,4640.3,4640.0,5.20446404]
[1755253083971,0.002,4640.3,4640.0,6.291]
[1755253084213,0.8045,4640.1,4640.0,6.291]
[1755253084774,0.8045,4640.1,4640.0,8.44617241]
[1755253084976,0.002,4640.1,4640.0,8.99617241]
[1755253085171,0.002,4640.3,4640.2,5.70507952]
[1755253085396,0.002,4640.3,4640.2,8.99607952]
[1755253085600,0.002,4640.3,4640.2,9.91507952]
[1755253088220,0.002,4641.1,4640.2,9.91507952]
[1755253088221,0.002,4641.1,4641.0,2.70470803]
[1755253088380,0.002,4641.1,4641.0,22.56986264]
[1755253088587,0.002,4641.1,4641.0,24.77432668]
[1755253088806,0.002,4641.1,4641.0,26.28152267]
[1755253089040,0.002,4641.1,4641.0,27.3061186]
[1755253089212,0.002,4641.1,4641.0,27.4141186]
[1755253089807,0.002,4641.1,4641.0,26.9503186]
[1755253090013,0.002,4641.1,4641.0,26.4951186]
[1755253091014,0.002,4641.1,4641.0,12.36996399]
[1755253091530,0.002,4641.1,4641.0,25.9441186]
[1755253091818,0.002,4641.1,4641.0,26.4949186]
[1755253092693,0.002,4641.1,4641.0,12.92076399]
[1755253092893,0.002,4641.1,4641.0,4.72159192]
[1755253093200,0.8045,4641.1,4641.0,10.06070402]
[1755253093517,0.002,4641.1,4641.0,10.06070402]
[1755253093688,0.002,4641.1,4641.0,10.16913626]
[1755253094011,0.8045,4641.1,4641.0,4.61599599]
[1755253094211,0.8045,4641.1,4641.0,7.90599599]
[1755253094719,0.8045,4641.1,4641.0,1.61599599]
[1755253094884,2.95916161,4641.1,4641.0,1.61599599]
[1755253095086,3.47053512,4641.1,4641.0,1.61599599]
[1755253095634,1.31587351,4641.1,4641.0,1.61599599]
[1755253095927,2.95916161,4641.1,4641.0,1.61599599]
[1755253096501,2.95916161,4641.1,4641.0,4.90599599]
[1755253097215,0.8045,4641.1,4641.0,4.90599599]
[1755253097596,0.002,4641.1,4641.0,4.90599599]
[1755253098623,0.002,4641.1,4641.0,7.90599599]
[1755253098936,0.002,4641.1,4641.0,11.0667877]
[1755253100115,0.002,4641.1,4641.0,12.5357877]
[1755253102535,0.002,4641.5,4641.4,19.27867695]
[1755253102701,0.002,4641.5,4641.4,22.56867695]
[1755253102910,0.002,4641.5,4641.4,25.11968974]
[1755253103109,0.002,4641.5,4641.4,27.32415378]
[1755253104012,0.002,4641.5,4641.4,26.38845378]
[1755253104803,0.002,4641.5,4641.4,26.84955378]
[1755253105006,0.002,4641.5,4641.4,26.38845378]
[1755253105306,0.002,4641.5,4641.4,12.26429917]
[1755253105506,0.002,4641.5,4641.4,10.10977683]
[1755253105806,0.002,4641.5,4641.4,7.90531279]
[1755253106129,0.8045,4641.5,4641.4,4.90531279]
[1755253106833,0.002,4641.5,4641.4,4.90531279]
[1755253107028,0.002,4641.5,4641.4,7.90531279]
[1755253108238,0.8045,4641.5,4641.4,7.90531279]
[1755253108432,0.3801,4641.5,4641.4,7.90531279]
[1755253108632,0.002,4641.5,4641.4,7.90531279]
[1755253109940,0.002,4641.5,4641.4,4.61531279]
[1755253110237,0.8045,4641.5,4641.4,4.61531279]
[1755253110441,2.95897592,4641.5,4641.4,4.90531279]
[1755253111818,3.47051345,4641.5,4641.4,1.50731279]
[1755253112119,6.71891344,4641.5,4641.4,1.50811279]
[1755253112842,6.71811344,4641.5,4641.4,1.50811279]
[1755253113066,6.71811344,4641.5,4641.4,1e-08]
[1755253113655,13.01011344,4641.5,4641.4,1e-08]
[1755253113839,13.00931344,4641.5,4641.4,1e-08]
[1755253114140,13.55931344,4641.5,4641.4,1e-08]
[1755253114324,14.02317118,4641.5,4641.4,1e-08]
[1755253115747,14.02417118,4641.5,4641.4,1e-08]
[1755253116530,13.47417118,4641.5,4641.4,1e-08]
[1755253116712,13.58217118,4641.5,4641.4,1e-08]
[1755253117035,10.28917118,4641.5,4641.4,1e-08]
[1755253117241,13.58117118,4641.5,4641.4,1e-08]
[1755253117640,14.13117118,4641.5,4641.4,1e-08]
[1755253118628,10.88277119,4641.5,4641.4,1e-08]
[1755253120347,2.15507952,4640.2,4640.1,1e-08]
[1755253120513,6.0072515,4640.2,4640.1,1e-08]
[1755253120713,6.78958869,4640.2,4640.1,0.00080001]
[1755253121514,6.87592069,4640.2,4640.1,0.00080001]
[1755253122343,2.15545113,4639.4,4639.3,0.001]
[1755253122543,5.55645113,4639.4,4639.3,0.001]
[1755253128448,2.26345113,4639.4,4639.3,0.001]
[1755253128755,5.55445113,4639.4,4639.3,0.001]
[1755253129157,5.55445113,4639.4,4639.3,0.9367]
[1755253129616,5.55445113,4639.4,4639.3,0.4621]
[1755253129818,6.08304632,4639.4,4639.3,1e-08]
[1755253130243,6.88554632,4639.4,4639.3,1e-08]
[1755253130522,2.15568345,4638.9,4638.2,0.4611]
[1755253130722,2.15568345,4638.9,4638.3,0.001]
[1755253130723,5.44768345,4638.9,4638.3,0.001]
[1755253130922,5.87869262,4638.9,4638.3,0.001]
[1755253131253,6.30309262,4638.9,4638.8,1e-08]
[1755253131546,6.78919262,4638.9,4638.8,1e-08]
[1755253132849,5.98669262,4638.9,4638.8,1e-08]
[1755253133253,8.98669262,4638.9,4638.8,1e-08]
[1755253133454,9.36479262,4638.9,4638.8,1e-08]
[1755253134075,8.98669262,4638.9,4638.8,1e-08]
[1755253137059,9.36479262,4638.9,4638.8,1e-08]
[1755253137250,9.78919262,4638.9,4638.8,1e-08]
[1755253137833,6.78919262,4638.9,4638.8,1e-08]
[1755253139265,2.15586935,4638.5,4638.4,1e-08]
[1755253139561,2.15591583,4638.4,4638.3,1e-08]
[1755253139943,2.17607864,4638.4,4638.3,1e-08]
[1755253140341,2.15591583,4638.4,4638.3,1e-08]
[1755253141177,2.6182772,4638.4,4638.3,1e-08]
[1755253142663,5.9102772,4638.4,4638.3,0.91980001]
[1755253142962,6.38220316,4638.4,4638.3,0.91980001]
[1755253143168,6.38220316,4638.4,4638.3,0.44450001]
[1755253144356,6.49120316,4638.4,4638.3,0.91980001]
[1755253144969,3.19820316,4638.4,4638.3,0.91980001]
[1755253145267,6.49120316,4638.4,4638.3,0.91980001]
[1755253145469,3.19820316,4638.4,4638.3,0.91980001]
[1755253145658,6.49120316,4638.4,4638.3,0.91980001]
[1755253146057,2.7262772,4638.4,4638.3,0.91980001]
[1755253146240,6.0192772,4638.4,4638.3,0.91980001]
[1755253146441,2.6182772,4638.4,4638.3,0.91980001]
[1755253146750,5.9112772,4638.4,4638.3,0.91980001]
[1755253148971,5.9112772,4638.4,4638.3,1e-08]
[1755253149350,6.72879186,4638.4,4638.3,1e-08]
[1755253149744,6.72879186,4638.4,4638.3,0.44450001]
[1755253150342,5.9112772,4638.4,4638.3,0.44450001]
[1755253150544,5.9112772,4638.4,4638.3,0.91980001]
[1755253151686,5.9132772,4638.4,4638.3,0.91980001]
[1755253153382,5.9132772,4638.4,4638.3,0.44450001]
[1755253155380,5.9132772,4638.4,4638.3,0.91980001]
[1755253155985,5.9124772,4638.4,4638.3,0.91980001]
[1755253158575,2.6194772,4638.4,4638.3,0.91980001]
[1755253158893,5.9114772,4638.4,4638.3,0.91980001]
[1755253159194,2.6194772,4638.4,4638.3,0.91980001]
[1755253159401,5.9114772,4638.4,4638.3,0.91980001]
[1755253159604,5.9114772,4638.4,4638.3,1e-08]
[1755253161457,5.9114772,4638.4,4638.3,0.44450001]
[1755253162992,5.9114772,4638.4,4638.3,0.90970001]
[1755253163397,5.9114772,4638.4,4638.3,0.44450001]
[1755253164103,5.9114772,4638.4,4638.3,0.90970001]
[1755253165705,2.6194772,4638.4,4638.3,0.90970001]
[1755253165910,5.9114772,4638.4,4638.3,0.90970001]
[1755253166485,5.44911583,4638.4,4638.3,0.90970001]
[1755253168386,5.44911583,4638.4,4638.3,1e-08]
[1755253168712,6.22041435,4638.4,4638.3,1e-08]
[1755253170518,5.44911583,4638.4,4638.3,1e-08]
[1755253170816,5.44911583,4638.4,4638.3,0.47560001]
[1755253171194,5.44911583,4638.4,4638.3,0.94080001]
[1755253171395,2.15711583,4638.4,4638.3,0.94080001]
[1755253171611,5.44911583,4638.4,4638.3,0.94080001]
[1755253175728,2.15791583,4638.4,4638.3,0.94080001]
[1755253175933,2.15791583,4638.4,4638.3,1.04880001]
[1755253176224,0.002,4638.4,4638.3,1.04880001]
[1755253176592,0.002,4638.4,4638.3,1.45368001]
[1755253177418,0.002,4638.4,4638.3,3.60964232]
[1755253177816,0.002,4638.9,4638.8,16.55915235]
[1755253178336,0.002,4638.9,4638.8,17.60715235]
[1755253178532,0.002,4638.9,4638.8,19.81161639]
[1755253183700,0.002,4638.9,4638.8,21.96734632]
[1755253184436,0.002,4638.9,4638.8,19.81161639]
[1755253187533,0.002,4638.9,4638.8,5.31246404]
[1755253187739,2.15768345,4638.9,4638.8,3.108]
[1755253188304,0.002,4638.9,4638.8,3.108]
[1755253188500,0.002,4638.9,4638.8,3.5828]
[1755253189056,0.002,4638.9,4638.8,4.048]
[1755253190256,0.002,4638.9,4638.8,3.108]
[1755253190849,0.002,4638.9,4638.8,3.5828]
[1755253191169,0.002,4638.9,4638.8,3.5836]
[1755253194675,0.002,4638.9,4638.8,4.0429]
[1755253194987,0.002,4638.9,4638.8,18.55102763]
[1755253195337,0.002,4638.9,4638.8,21.84102763]
[1755253195684,0.002,4638.9,4638.8,23.99675756]
[1755253199397,0.0012,4638.9,4638.8,23.99675756]
[1755253200280,0.002,4639.4,4638.9,3.55]
[1755253200463,0.002,4639.4,4639.3,19.37264994]
[1755253200668,0.002,4639.4,4639.3,22.66264994]
[1755253200868,0.002,4639.8,4639.6,0.55]
[1755253201177,0.002,4639.8,4639.7,9.12486487]
[1755253201386,0.002,4639.8,4639.7,10.32098871]
[1755253201599,0.0004,4641.5,4640.8,2.15478263]
[1755253201779,0.0004,4641.5,4641.0,3.0]
[1755253201970,0.0004,4641.5,4641.4,0.108]
[1755253202505,0.0004,4641.5,4641.4,3.12954522]
[1755253202906,0.0004,4641.5,4641.4,4.02604522]
[1755253203081,0.0004,4641.5,4641.4,6.23050926]
[1755253203268,0.0004,4641.5,4641.4,8.36348638]
[1755253205703,0.0004,4641.5,4641.4,8.91348638]
[1755253205907,0.0004,4641.5,4641.4,9.02138774]
[1755253211147,0.0004,4641.5,4641.4,5.9703654]
[1755253211306,0.0004,4641.5,4641.4,8.55132234]
[1755253212444,0.0004,4641.5,4641.4,6.3968]
[1755253212642,0.0004,4641.5,4641.4,3.3968]
[1755253212941,2.15487592,4641.5,4641.4,0.1088]
[1755253213148,2.95737592,4641.5,4641.4,0.1088]
[1755253213328,3.46875437,4641.5,4641.4,0.1088]
[1755253213934,3.46875437,4641.5,4641.4,0.0008]
[1755253215418,2.15487592,4641.5,4641.4,0.0008]
[1755253216330,0.0004,4641.5,4641.4,0.1088]
[1755253216513,0.0004,4641.5,4641.4,3.1088]
[1755253219756,0.0004,4641.5,4641.4,4.0053]
[1755253220338,0.0004,4641.5,4641.4,6.18136756]
[1755253220557,0.0004,4641.5,4641.4,8.91428638]
[1755253220765,0.0016,4641.6,4641.5,2.70447592]
[1755253221056,0.0016,4641.6,4641.5,9.42867592]
[1755253221260,0.0016,4641.6,4641.5,9.88797592]
[1755253228863,0.002,4642.0,4641.9,2.15429026]
[1755253229060,0.002,4642.0,4641.9,22.62387164]
[1755253229238,0.002,4642.0,4641.9,23.09127164]
[1755253229761,0.002,4642.0,4641.9,23.58507164]
[1755253231536,0.002,4642.0,4641.9,6.90942903]
[1755253231844,0.002,4642.0,4641.9,6.3948]
[1755253232257,0.002,4642.0,4641.9,6.8622]
[1755253233444,0.002,4642.0,4641.9,6.3948]
[1755253234080,0.002,4642.0,4641.9,8.54909026]
[1755253234585,0.002,4642.0,4641.9,9.51029026]
[1755253234767,0.002,4642.0,4641.9,11.7147543]
[1755253240462,0.0012,4642.0,4641.9,11.7147543]
[1755253240669,0.0012,4642.0,4641.9,12.2647543]
[1755253241668,0.0012,4642.0,4641.9,12.7647543]
[1755253246673,0.002,4642.5,4641.9,12.7647543]
[1755253246674,0.002,4642.5,4642.4,2.15405824]
[1755253246899,0.002,4642.5,4642.4,23.03402886]
[1755253247099,0.002,4642.5,4642.4,24.10322886]
[1755253247311,0.002,4642.5,4642.4,10.54407651]
[1755253247520,0.002,4642.5,4642.4,24.10322886]
[1755253248307,0.002,4642.5,4642.4,19.30702886]
[1755253248527,0.002,4642.5,4642.4,22.59202886]
[1755253249506,0.002,4642.5,4642.4,9.03287651]
[1755253252012,0.002,4642.5,4642.4,9.03367651]
[1755253255314,0.002,4642.5,4642.4,10.51617651]
[1755253256933,0.002,4642.5,4642.4,9.58367651]
[1755253258351,0.002,4642.5,4642.4,10.02047651]
[1755253258655,0.002,4642.5,4642.4,10.51617651]
[1755253258829,0.002,4642.5,4642.4,9.58367651]
[1755253260165,0.002,4642.5,4642.4,5.74867651]
[1755253260368,0.8045,4642.5,4642.4,3.3928]
[1755253260535,2.95851184,4642.5,4642.4,3.3928]
[1755253260878,2.95851184,4642.5,4642.4,0.1088]
[1755253261188,3.46975525,4642.5,4642.4,0.0008]
[1755253262393,2.15601184,4642.5,4642.4,0.0008]
[1755253262598,2.53411184,4642.5,4642.4,0.0008]
[1755253262796,2.95851184,4642.5,4642.4,0.0008]
[1755253262960,2.95771184,4642.5,4642.4,0.0008]
[1755253264491,2.15521184,4642.5,4642.4,0.0008]
[1755253264688,0.0012,4642.5,4642.4,6.3928]
[1755253264976,0.0012,4642.5,4642.4,9.37813824]
[1755253265187,0.0012,4642.5,4642.4,10.41863824]
[1755253265388,0.0012,4642.5,4642.4,24.41979059]
[1755253265588,0.0012,4642.5,4642.4,24.52779059]
[1755253269413,0.0012,4642.5,4642.4,10.03613824]
[1755253270002,0.0012,4642.5,4642.4,9.48613824]
[1755253270389,0.0012,4642.5,4642.4,9.92293824]
[1755253270584,0.0012,4642.5,4642.4,10.41863824]
[1755253272829,0.0012,4642.5,4642.4,10.96863824]
[1755253275694,0.0012,4642.5,4642.4,9.48613824]
[1755253276686,0.0012,4642.5,4642.4,10.41863824]
[1755253280089,0.0012,4642.5,4642.4,10.96863824]
[1755253282822,0.0004,4642.5,4642.4,10.96863824]
[1755253283121,0.0004,4642.5,4642.4,12.26163824]
[1755253283293,0.0004,4642.5,4642.4,10.96863824]
[1755253284602,0.0004,4642.5,4642.4,10.47293824]
[1755253284798,0.002,4642.9,4642.8,0.55]
[1755253285004,0.002,4642.9,4642.8,22.95682501]
[1755253285202,0.002,4642.9,4642.8,23.51242501]
[1755253287196,0.002,4643.5,4643.3,0.55]
[1755253287527,0.1,4644.0,4643.2,2.15365982]
[1755253287528,0.1,4644.0,4643.9,5.70336247]
[1755253287829,0.1,4644.0,4643.9,22.54551482]
[1755253287995,0.1,4644.0,4643.9,25.30557886]
[1755253288541,0.1,4644.0,4643.9,25.47014241]
[1755253289100,0.3781,4645.7,4645.0,2.15284772]
[1755253289435,0.3781,4646.2,4645.2,5.15273552]
[1755253289598,2.9548023,4646.2,4645.6,0.108]
[1755253289933,3.46553438,4646.2,4645.9,0.108]
[1755253290226,0.3781,4646.5,4646.0,3.283]
[1755253290429,2.15225716,4646.3,4646.1,3.283]
[1755253290767,2.15215753,4646.5,4646.4,0.108]
[1755253291038,2.15191137,4647.1,4646.4,3.282]
[1755253291332,0.34035993,4647.0,4646.4,3.282]
[1755253291496,2.15201335,4646.9,4646.4,3.282]
[1755253291697,0.34035993,4647.0,4646.9,0.1072]
[1755253291928,2.57605891,4647.6,4646.9,3.55323798]
[1755253292138,2.57604861,4647.6,4646.9,3.55323798]
[1755253292336,2.57604861,4647.6,4647.5,0.1072]
[1755253292337,0.4244,4647.6,4647.5,0.1072]
[1755253292641,0.8025,4647.6,4647.5,3.3892]
[1755253292836,2.95414816,4647.6,4647.5,0.1072]
[1755253293042,2.95414816,4647.6,4646.9,0.16403798]
[1755253293043,2.15189583,4647.1,4647.0,3.282]
[1755253293240,0.29541132,4647.6,4647.0,3.282]
[1755253293416,0.3781,4647.8,4647.0,3.282]
[1755253293621,2.15179514,4647.3,4647.0,3.282]
[1755253293817,2.15179514,4647.3,4647.2,0.1072]
[1755253294547,2.15179514,4647.3,4647.2,3.3882]
[1755253294548,2.80429514,4647.3,4647.2,3.3882]
[1755253295449,2.00179514,4647.3,4647.2,3.3882]
[1755253298045,1.85179514,4647.3,4647.2,3.3882]
[1755253298257,2.15174255,4647.4,4647.2,3.3882]
[1755253298451,0.2495,4648.0,4647.2,3.3882]
[1755253298649,2.15164012,4647.7,4647.2,3.281]
[1755253298853,2.15164012,4647.7,4647.3,0.02151787]
[1755253299154,0.2495,4648.0,4647.2,3.281]
[1755253299520,2.15164329,4647.7,4647.2,3.281]
[1755253299720,2.15164329,4647.7,4647.6,0.1072]
[1755253299925,2.60690869,4647.7,4647.6,3.3882]
[1755253300131,0.4552654,4647.7,4647.6,3.3882]
[1755253300437,0.2495,4648.0,4647.6,3.3882]
[1755253300637,0.2495,4648.0,4647.7,0.4476]
[1755253300833,0.2495,4648.0,4647.9,0.1072]
[1755253301239,0.2495,4648.0,4647.9,1.0399]
[1755253301454,0.2495,4648.0,4647.9,0.1072]
[1755253301659,3.20346299,4648.0,4647.9,6.3882]
[1755253302026,3.20346299,4648.0,4647.9,6.8882]
[1755253302227,2.40096299,4648.0,4647.9,6.8882]
[1755253303061,2.77906299,4648.0,4647.9,6.8882]
[1755253303537,2.89400643,4648.0,4647.9,0.6072]
[1755253303733,3.69650643,4648.0,4647.9,0.6072]
[1755253304262,2.89400643,4648.0,4647.9,0.5]
[1755253304752,2.40096299,4648.0,4647.9,0.6072]
[1755253305257,2.40096299,4648.0,4647.9,0.608]
[1755253306946,2.40096299,4648.0,4647.9,3.888]
[1755253308033,2.40096299,4648.0,4647.9,0.5008]
[1755253308234,3.2236258,4648.0,4647.9,0.5008]
[1755253308428,3.75168407,4648.0,4647.9,0.5008]
[1755253308632,3.75168407,4648.0,4647.9,0.0008]
[1755253309884,3.05638407,4648.0,4647.9,0.0008]
[1755253310091,2.40096299,4648.0,4647.9,0.0008]
[1755253310588,0.2495,4648.0,4647.9,0.0008]
[1755253310957,0.2495,4648.0,4647.9,0.4484]
[1755253311483,0.2495,4648.0,4647.9,0.9335]
[1755253311676,0.2495,4648.0,4647.9,1.0407]
[1755253312949,0.2495,4648.0,4647.9,7.3197]
[1755253313382,0.2495,4648.0,4647.9,6.387]
[1755253313948,0.2495,4648.0,4647.9,6.8506]
[1755253314152,0.2495,4648.0,4647.9,6.387]
[1755253314352,2.40096299,4648.0,4647.9,3.387]
[1755253314954,2.85619738,4648.0,4647.9,3.387]
[1755253315161,3.65869738,4648.0,4647.9,0.0008]
[1755253315890,4.12026712,4648.0,4647.9,0.0008]
[1755253318401,4.69042993,4648.0,4647.9,0.0008]
[1755253318557,4.67026712,4648.0,4647.9,0.0008]
[1755253318964,7.67026712,4648.0,4647.9,0.0008]
[1755253319208,7.87126083,4648.0,4647.9,0.0008]
[1755253319359,2.15201859,4646.8,4646.7,0.001]
[1755253319703,2.61358833,4646.8,4646.7,0.001]
[1755253319884,3.15878535,4646.8,4646.7,0.001]
[1755253321098,3.17894816,4646.8,4646.7,0.001]
[1755253321400,2.15243548,4645.9,4645.8,0.108]
[1755253321562,2.15243548,4645.9,4645.1,0.16400474]
[1755253321763,2.15262081,4645.5,4645.4,0.108]
[1755253322797,2.15262081,4645.5,4645.4,0.5716]
[1755253322996,0.108,4646.1,4645.4,0.5716]
[1755253323177,2.15259718,4645.6,4645.4,0.5716]
[1755253323359,2.15262081,4645.5,4645.4,0.5829]
[1755253323558,2.15247353,4645.9,4645.4,0.5829]
[1755253323764,0.57896296,4646.4,4645.5,3.7549]
[1755253323959,2.15235021,4646.1,4646.0,0.108]
[1755253324199,2.15235021,4646.1,4646.0,1.0465]
[1755253324884,2.15155021,4646.1,4646.0,1.0465]